[Event "Late-Titled-Tuesday-Blitz-September-12-2023"]
[Site "Chess.com"]
[Date "2023.09.12"]
[Round "9"]
[White "Quattroporte300"]
[Black "NotFischer"]
[Result "1-0"]
[WhiteElo "2400"]
[BlackElo "2294"]
[TimeControl "180+1"]
[EndTime "15:39:34 PDT"]
[Termination "Quattroporte300 won by resignation"]

1. e4 {[%clk 0:02:57.5]} 1... d5 {[%clk 0:02:59.4]} 2. exd5 {[%clk 0:02:56.2]}
2... Qxd5 {[%clk 0:03:00.3]} 3. Nf3 {[%clk 0:02:55.8]} 3... Bg4 {[%clk
0:02:59.5]} 4. Be2 {[%clk 0:02:55]} 4... Nc6 {[%clk 0:02:59.1]} 5. h3 {[%clk
0:02:55]} 5... Bh5 {[%clk 0:02:46.4]} 6. O-O {[%clk 0:02:52.6]} 6... Nf6 {[%clk
0:02:42.8]} 7. d4 {[%clk 0:02:51]} 7... O-O-O {[%clk 0:02:37]} 8. Be3 {[%clk
0:02:51.1]} 8... e6 {[%clk 0:02:11.6]} 9. c4 {[%clk 0:02:49.3]} 9... Qd7 {[%clk
0:02:03.1]} 10. Qb3 {[%clk 0:02:39.8]} 10... Na5 {[%clk 0:01:45.7]} 11. Qc3
{[%clk 0:02:32]} 11... Qa4 {[%clk 0:01:31.5]} 12. b3 {[%clk 0:02:14.5]} 12...
Qb4 {[%clk 0:01:29.7]} 13. Rd1 {[%clk 0:02:12]} 13... Ne4 {[%clk 0:01:25.9]} 14.
Qxb4 {[%clk 0:01:53.7]} 14... Bxb4 {[%clk 0:01:26.8]} 15. g4 {[%clk 0:01:40.6]}
15... Bg6 {[%clk 0:01:26]} 16. Ne5 {[%clk 0:01:40.3]} 16... f6 {[%clk
0:01:12.7]} 17. Nxg6 {[%clk 0:01:39.7]} 17... hxg6 {[%clk 0:01:13.6]} 18. Kg2
{[%clk 0:01:38.8]} 18... Nc6 {[%clk 0:00:54.2]} 19. a3 {[%clk 0:01:34.2]} 19...
Bc3 {[%clk 0:00:53]} 20. Nxc3 {[%clk 0:01:21.5]} 20... Nxc3 {[%clk 0:00:53.9]}
21. Rd2 {[%clk 0:01:21.2]} 21... Nxe2 {[%clk 0:00:44.5]} 22. Rxe2 {[%clk
0:01:22.1]} 22... Nxd4 {[%clk 0:00:44.9]} 23. Bxd4 {[%clk 0:01:18.6]} 23... Rxd4
{[%clk 0:00:45.8]} 24. Rxe6 {[%clk 0:01:18.8]} 24... Rd3 {[%clk 0:00:46.2]} 25.
Re3 {[%clk 0:01:13.4]} 25... Rxe3 {[%clk 0:00:45.8]} 26. fxe3 {[%clk 0:01:13.9]}
26... Rd8 {[%clk 0:00:46.3]} 27. Kf3 {[%clk 0:01:07.5]} 27... Rd3 {[%clk
0:00:45.2]} 28. Rb1 {[%clk 0:01:06.6]} 28... f5 {[%clk 0:00:39.9]} 29. Ke2
{[%clk 0:01:02]} 29... Rd6 {[%clk 0:00:33.1]} 30. Rg1 {[%clk 0:01:00.9]} 30...
Rd7 {[%clk 0:00:28.9]} 31. gxf5 {[%clk 0:00:58.6]} 31... gxf5 {[%clk 0:00:29.8]}
32. Rg5 {[%clk 0:00:58.6]} 32... Rf7 {[%clk 0:00:29.9]} 33. Kf3 {[%clk
0:00:58.5]} 33... Kd7 {[%clk 0:00:30.2]} 34. Kf4 {[%clk 0:00:58.9]} 34... Ke6
{[%clk 0:00:29.3]} 35. Rg6+ {[%clk 0:00:58.8]} 35... Ke7 {[%clk 0:00:29.6]} 36.
Ke5 {[%clk 0:00:58]} 36... Kf8 {[%clk 0:00:15.4]} 37. h4 {[%clk 0:00:39.9]}
37... Re7+ {[%clk 0:00:14.9]} 38. Re6 {[%clk 0:00:36.3]} 38... g6 {[%clk
0:00:09.2]} 39. Kf6 {[%clk 0:00:24.2]} 39... Rxe6+ {[%clk 0:00:07.1]} 40. Kxe6
{[%clk 0:00:24.7]} 40... Kg7 {[%clk 0:00:03.6]} 41. Kd7 {[%clk 0:00:24.9]} 41...
Kf6 {[%clk 0:00:04]} 42. Kxc7 {[%clk 0:00:25.1]} 42... Ke6 {[%clk 0:00:03.2]}
43. Kxb7 {[%clk 0:00:24.7]} 43... Ke5 {[%clk 0:00:03.8]} 44. c5 {[%clk
0:00:24.6]} 44... Ke4 {[%clk 0:00:04.7]} 45. c6 {[%clk 0:00:25]} 45... Kxe3
{[%clk 0:00:05.6]} 46. c7 {[%clk 0:00:25.5]} 46... f4 {[%clk 0:00:06.5]} 47.
c8=Q {[%clk 0:00:25.8]} 47... f3 {[%clk 0:00:07.4]} 48. Qe6+ {[%clk 0:00:25.9]}
48... Kf2 {[%clk 0:00:07.9]} 49. Qxg6 {[%clk 0:00:26.1]} 49... Ke2 {[%clk
0:00:08.3]} 50. Qe4+ {[%clk 0:00:25.9]} 50... Kf2 {[%clk 0:00:08.6]} 51. h5
{[%clk 0:00:25.8]} 1-0

[Event "Late-Titled-Tuesday-Blitz-September-12-2023"]
[Site "Chess.com"]
[Date "2023.09.12"]
[Round "9"]
[White "Qvalda"]
[Black "ural58"]
[Result "0-1"]
[WhiteElo "2363"]
[BlackElo "2549"]
[TimeControl "180+1"]
[EndTime "15:39:37 PDT"]
[Termination "ural58 won on time"]

1. Nf3 {[%clk 0:03:00.9]} 1... d5 {[%clk 0:02:51.2]} 2. e3 {[%clk 0:03:00.6]}
2... Nc6 {[%clk 0:02:42.4]} 3. Bb5 {[%clk 0:02:56.6]} 3... Bg4 {[%clk
0:02:41.9]} 4. h3 {[%clk 0:02:55.2]} 4... Bxf3 {[%clk 0:02:37.1]} 5. Qxf3 {[%clk
0:02:53.4]} 5... a6 {[%clk 0:02:32.5]} 6. Bxc6+ {[%clk 0:02:50]} 6... bxc6
{[%clk 0:02:33.1]} 7. b3 {[%clk 0:02:48.1]} 7... f6 {[%clk 0:02:27.1]} 8. Bb2
{[%clk 0:02:39.9]} 8... e5 {[%clk 0:02:26.8]} 9. c4 {[%clk 0:02:39.8]} 9... e4
{[%clk 0:01:59.5]} 10. Qh5+ {[%clk 0:02:35.9]} 10... g6 {[%clk 0:01:57.4]} 11.
Qe2 {[%clk 0:02:36.3]} 11... Bg7 {[%clk 0:01:54.4]} 12. h4 {[%clk 0:02:33.9]}
12... h5 {[%clk 0:01:48]} 13. Nc3 {[%clk 0:02:30.9]} 13... f5 {[%clk 0:01:43.2]}
14. O-O-O {[%clk 0:02:22.6]} 14... Nf6 {[%clk 0:01:42.3]} 15. d3 {[%clk
0:02:21.6]} 15... exd3 {[%clk 0:01:38.4]} 16. Rxd3 {[%clk 0:02:17.5]} 16... O-O
{[%clk 0:01:37.7]} 17. cxd5 {[%clk 0:01:52.8]} 17... cxd5 {[%clk 0:01:36.4]} 18.
Na4 {[%clk 0:01:52.8]} 18... c6 {[%clk 0:01:35.5]} 19. Kb1 {[%clk 0:01:46.2]}
19... Ne4 {[%clk 0:01:32.4]} 20. Rc1 {[%clk 0:01:41.2]} 20... Qxh4 {[%clk
0:01:29.6]} 21. Bxg7 {[%clk 0:01:36.8]} 21... Kxg7 {[%clk 0:01:29.1]} 22. Rxc6
{[%clk 0:01:34]} 22... Qxf2 {[%clk 0:01:27.8]} 23. Qxf2 {[%clk 0:01:29.4]} 23...
Nxf2 {[%clk 0:01:27.8]} 24. Rxd5 {[%clk 0:01:27.7]} 24... Rad8 {[%clk
0:01:25.4]} 25. Rxd8 {[%clk 0:01:05.2]} 25... Rxd8 {[%clk 0:01:25.4]} 26. Rxa6
{[%clk 0:01:05]} 26... Re8 {[%clk 0:01:20.7]} 27. b4 {[%clk 0:01:03.1]} 27...
Nd1 {[%clk 0:01:18]} 28. b5 {[%clk 0:01:01.1]} 28... Nxe3 {[%clk 0:01:18.2]} 29.
b6 {[%clk 0:00:59.6]} 29... Nxg2 {[%clk 0:01:10.9]} 30. b7 {[%clk 0:00:57.2]}
30... Rb8 {[%clk 0:01:10.2]} 31. Nc5 {[%clk 0:00:56]} 31... h4 {[%clk
0:01:09.5]} 32. Ra8 {[%clk 0:00:26.2]} 32... Rxb7+ {[%clk 0:01:09.7]} 33. Nxb7
{[%clk 0:00:27]} 33... h3 {[%clk 0:01:10.1]} 34. Ra3 {[%clk 0:00:17.3]} 34...
Nf4 {[%clk 0:01:10.2]} 35. Rf3 {[%clk 0:00:13.9]} 35... h2 {[%clk 0:01:09.7]}
36. Rf1 {[%clk 0:00:13.8]} 36... g5 {[%clk 0:01:01]} 37. Nd6 {[%clk 0:00:13.4]}
37... Kf6 {[%clk 0:00:57.7]} 38. Nc4 {[%clk 0:00:09.2]} 38... g4 {[%clk
0:00:54.8]} 39. a4 {[%clk 0:00:07.3]} 39... g3 {[%clk 0:00:54.1]} 40. Ne3 {[%clk
0:00:07.4]} 40... Ke6 {[%clk 0:00:32.9]} 41. a5 {[%clk 0:00:07.6]} 41... Nd5
{[%clk 0:00:33.1]} 42. Nxd5 {[%clk 0:00:05.5]} 42... Kxd5 {[%clk 0:00:30.7]} 43.
a6 {[%clk 0:00:05.9]} 43... g2 {[%clk 0:00:30.4]} 44. Rd1+ {[%clk 0:00:05.7]}
44... Kc4 {[%clk 0:00:29.9]} 45. a7 {[%clk 0:00:06.6]} 45... g1=Q {[%clk
0:00:30]} 46. a8=Q {[%clk 0:00:02.7]} 46... Qxd1+ {[%clk 0:00:29.7]} 47. Kb2
{[%clk 0:00:03.1]} 47... Qd4+ {[%clk 0:00:25.2]} 48. Kb1 {[%clk 0:00:02.4]}
48... Qe4+ {[%clk 0:00:25.1]} 0-1

[Event "Late-Titled-Tuesday-Blitz-September-12-2023"]
[Site "Chess.com"]
[Date "2023.09.12"]
[Round "9"]
[White "DvaHrasta"]
[Black "EnvigadoCity"]
[Result "1-0"]
[WhiteElo "2475"]
[BlackElo "2202"]
[TimeControl "180+1"]
[EndTime "15:39:38 PDT"]
[Termination "DvaHrasta won on time"]

1. c4 {[%clk 0:03:00.9]} 1... e5 {[%clk 0:02:58.4]} 2. g3 {[%clk 0:03:00.9]}
2... Nf6 {[%clk 0:02:58.3]} 3. Bg2 {[%clk 0:03:00.8]} 3... c6 {[%clk 0:02:59]}
4. Nf3 {[%clk 0:03:00.7]} 4... e4 {[%clk 0:02:54.4]} 5. Nd4 {[%clk 0:03:00.4]}
5... Qb6 {[%clk 0:02:49.7]} 6. Nc2 {[%clk 0:02:55.4]} 6... d5 {[%clk 0:02:39.2]}
7. cxd5 {[%clk 0:02:53.8]} 7... cxd5 {[%clk 0:02:40.1]} 8. Nc3 {[%clk
0:02:53.6]} 8... Bf5 {[%clk 0:02:35.3]} 9. Ne3 {[%clk 0:02:43.2]} 9... Be6
{[%clk 0:02:30.7]} 10. Nc2 {[%clk 0:02:12.8]} 10... Bf5 {[%clk 0:02:30.4]} 11.
d4 {[%clk 0:02:09.7]} 11... Nc6 {[%clk 0:02:17.7]} 12. O-O {[%clk 0:02:08.1]}
12... h5 {[%clk 0:02:13.7]} 13. h3 {[%clk 0:02:05.8]} 13... Bd6 {[%clk
0:02:07.4]} 14. Bg5 {[%clk 0:02:03.5]} 14... Ne7 {[%clk 0:01:53.4]} 15. Ne3
{[%clk 0:01:56.5]} 15... Be6 {[%clk 0:01:52.7]} 16. Qa4+ {[%clk 0:01:49.8]}
16... Bd7 {[%clk 0:01:39.3]} 17. Qb3 {[%clk 0:01:49.6]} 17... Qxd4 {[%clk
0:01:21.5]} 18. Rfd1 {[%clk 0:01:46.7]} 18... Qb6 {[%clk 0:01:07.8]} 19. Bxf6
{[%clk 0:01:42.6]} 19... gxf6 {[%clk 0:01:06.7]} 20. Qxb6 {[%clk 0:01:38.2]}
20... axb6 {[%clk 0:01:06.1]} 21. Ncxd5 {[%clk 0:01:38]} 21... Nxd5 {[%clk
0:01:03.7]} 22. Nxd5 {[%clk 0:01:38]} 22... Be5 {[%clk 0:00:58.1]} 23. Nxb6
{[%clk 0:01:35.4]} 23... Rd8 {[%clk 0:00:57.7]} 24. Bxe4 {[%clk 0:01:28.2]}
24... Bxh3 {[%clk 0:00:54.6]} 25. Bxb7 {[%clk 0:01:21.2]} 25... Rxd1+ {[%clk
0:00:43.4]} 26. Rxd1 {[%clk 0:01:20.4]} 26... Bxb2 {[%clk 0:00:43.1]} 27. Bc6+
{[%clk 0:01:17.9]} 27... Kf8 {[%clk 0:00:43.3]} 28. Rd8+ {[%clk 0:01:16.5]}
28... Kg7 {[%clk 0:00:43.9]} 29. Rxh8 {[%clk 0:01:16.3]} 29... Kxh8 {[%clk
0:00:44.8]} 30. a4 {[%clk 0:01:13.2]} 30... Bd4 {[%clk 0:00:44]} 31. a5 {[%clk
0:01:08.2]} 31... Kg7 {[%clk 0:00:35.5]} 32. e3 {[%clk 0:01:08]} 32... Bc5
{[%clk 0:00:34.4]} 33. Na4 {[%clk 0:00:59.5]} 33... Ba7 {[%clk 0:00:30.6]} 34.
a6 {[%clk 0:00:58.9]} 34... Bc8 {[%clk 0:00:23.2]} 35. Bb7 {[%clk 0:00:54.9]}
35... Bd7 {[%clk 0:00:22.5]} 36. Nc3 {[%clk 0:00:53.3]} 36... Kf8 {[%clk
0:00:19.8]} 37. Kf1 {[%clk 0:00:43.5]} 37... Ke7 {[%clk 0:00:17.7]} 38. Ke2
{[%clk 0:00:42.9]} 38... Kd6 {[%clk 0:00:17.2]} 39. Ne4+ {[%clk 0:00:40.9]}
39... Ke6 {[%clk 0:00:14.6]} 40. Kd3 {[%clk 0:00:37]} 40... f5 {[%clk 0:00:15]}
41. Ng5+ {[%clk 0:00:35]} 41... Kf6 {[%clk 0:00:13.5]} 42. Nh3 {[%clk 0:00:34]}
42... Ke5 {[%clk 0:00:09.6]} 43. Nf4 {[%clk 0:00:32.1]} 43... Bb5+ {[%clk
0:00:09.4]} 44. Kc3 {[%clk 0:00:31.9]} 44... Bc5 {[%clk 0:00:07]} 45. Nxh5
{[%clk 0:00:31.4]} 45... Kd6 {[%clk 0:00:03.2]} 46. Nf4 {[%clk 0:00:29.9]} 46...
Kc7 {[%clk 0:00:03.1]} 47. Nd3 {[%clk 0:00:28.6]} 47... Bd6 {[%clk 0:00:01.8]}
48. Nb4 {[%clk 0:00:26.8]} 48... Kb8 {[%clk 0:00:01.7]} 49. Nd5 {[%clk
0:00:24.7]} 49... Ka7 {[%clk 0:00:01.2]} 50. Kd4 {[%clk 0:00:24.4]} 1-0

[Event "Late-Titled-Tuesday-Blitz-September-12-2023"]
[Site "Chess.com"]
[Date "2023.09.12"]
[Round "9"]
[White "AlexNovitz"]
[Black "chessajedrezz2020"]
[Result "0-1"]
[WhiteElo "2163"]
[BlackElo "2698"]
[TimeControl "180+1"]
[EndTime "15:39:39 PDT"]
[Termination "chessajedrezz2020 won on time"]

1. e4 {[%clk 0:03:00.9]} 1... c6 {[%clk 0:02:53.9]} 2. d4 {[%clk 0:02:54.2]}
2... d5 {[%clk 0:02:52.9]} 3. exd5 {[%clk 0:02:55.1]} 3... cxd5 {[%clk
0:02:52.2]} 4. c4 {[%clk 0:02:56]} 4... Nf6 {[%clk 0:02:50.5]} 5. Nc3 {[%clk
0:02:52.5]} 5... e6 {[%clk 0:02:50.4]} 6. c5 {[%clk 0:02:52]} 6... b6 {[%clk
0:02:29.5]} 7. b4 {[%clk 0:02:51.1]} 7... a5 {[%clk 0:02:29.6]} 8. Bb5+ {[%clk
0:02:49.1]} 8... Bd7 {[%clk 0:02:29.8]} 9. Qa4 {[%clk 0:02:48.9]} 9... Qc8
{[%clk 0:02:13.9]} 10. Bxd7+ {[%clk 0:02:31.5]} 10... Nfxd7 {[%clk 0:02:12.7]}
11. Bf4 {[%clk 0:02:22.7]} 11... Nc6 {[%clk 0:01:56.7]} 12. b5 {[%clk
0:02:18.4]} 12... Nb4 {[%clk 0:01:56.6]} 13. c6 {[%clk 0:01:43.4]} 13... Nd3+
{[%clk 0:01:52.7]} 14. Kf1 {[%clk 0:01:44]} 14... Nxf4 {[%clk 0:01:53]} 15.
cxd7+ {[%clk 0:01:44.6]} 15... Qxd7 {[%clk 0:01:18.4]} 16. Nf3 {[%clk
0:01:37.1]} 16... Bd6 {[%clk 0:01:16.2]} 17. g3 {[%clk 0:01:30.7]} 17... Ng6
{[%clk 0:00:57.9]} 18. Kg2 {[%clk 0:01:28.2]} 18... O-O {[%clk 0:00:57]} 19. h4
{[%clk 0:01:25.3]} 19... Rfc8 {[%clk 0:00:48]} 20. Qb3 {[%clk 0:01:11.4]} 20...
Ne7 {[%clk 0:00:39.1]} 21. Na4 {[%clk 0:01:05.7]} 21... Rab8 {[%clk 0:00:33.7]}
22. Rac1 {[%clk 0:01:05.9]} 22... Rc7 {[%clk 0:00:32.5]} 23. Rxc7 {[%clk
0:01:00.2]} 23... Qxc7 {[%clk 0:00:32.4]} 24. Rd1 {[%clk 0:00:52.3]} 24... h6
{[%clk 0:00:28.8]} 25. Rd3 {[%clk 0:00:50.2]} 25... Qd7 {[%clk 0:00:21.5]} 26.
Rc3 {[%clk 0:00:45.6]} 26... Bb4 {[%clk 0:00:21]} 27. Rc1 {[%clk 0:00:36.9]}
27... f6 {[%clk 0:00:19.6]} 28. Qc2 {[%clk 0:00:34.5]} 28... Qxb5 {[%clk
0:00:18.4]} 29. Nc3 {[%clk 0:00:34.5]} 29... Qd7 {[%clk 0:00:15.3]} 30. a4
{[%clk 0:00:33.4]} 30... Rc8 {[%clk 0:00:15.3]} 31. Qb3 {[%clk 0:00:32.3]} 31...
Bxc3 {[%clk 0:00:13.7]} 32. Rxc3 {[%clk 0:00:32.1]} 32... Rxc3 {[%clk
0:00:14.3]} 33. Qxc3 {[%clk 0:00:33]} 33... Nc6 {[%clk 0:00:13.3]} 34. Qe3
{[%clk 0:00:28.7]} 34... Qd6 {[%clk 0:00:09.6]} 35. Qd3 {[%clk 0:00:25.2]} 35...
e5 {[%clk 0:00:09.5]} 36. dxe5 {[%clk 0:00:16.5]} 36... Nxe5 {[%clk 0:00:10.1]}
37. Qb5 {[%clk 0:00:06.1]} 37... Nc6 {[%clk 0:00:08.5]} 38. Qxb6 {[%clk
0:00:05.9]} 38... d4 {[%clk 0:00:07.5]} 39. Nxd4 {[%clk 0:00:04.3]} 39... Qd5+
{[%clk 0:00:04.9]} 40. Nf3 {[%clk 0:00:03.8]} 40... Ne5 {[%clk 0:00:05.2]} 41.
Qb8+ {[%clk 0:00:02.8]} 41... Kh7 {[%clk 0:00:04.8]} 0-1

[Event "Late-Titled-Tuesday-Blitz-September-12-2023"]
[Site "Chess.com"]
[Date "2023.09.12"]
[Round "9"]
[White "Chessdude1987"]
[Black "santosalberto1987"]
[Result "0-1"]
[WhiteElo "2434"]
[BlackElo "2542"]
[TimeControl "180+1"]
[EndTime "15:39:40 PDT"]
[Termination "santosalberto1987 won on time"]

1. e4 {[%clk 0:03:00.9]} 1... e6 {[%clk 0:02:59.5]} 2. d4 {[%clk 0:02:58.3]}
2... d5 {[%clk 0:02:59.5]} 3. e5 {[%clk 0:02:54.6]} 3... c5 {[%clk 0:02:59.5]}
4. c3 {[%clk 0:02:52.9]} 4... Qb6 {[%clk 0:02:59.9]} 5. Nf3 {[%clk 0:02:50.1]}
5... Nc6 {[%clk 0:03:00.2]} 6. Bd3 {[%clk 0:02:45.3]} 6... cxd4 {[%clk
0:02:59.3]} 7. O-O {[%clk 0:02:44.3]} 7... Bd7 {[%clk 0:02:58.9]} 8. Re1 {[%clk
0:02:41.8]} 8... Nge7 {[%clk 0:02:52.7]} 9. Ng5 {[%clk 0:02:38.7]} 9... Ng6
{[%clk 0:02:44.7]} 10. Bxg6 {[%clk 0:02:36.7]} 10... hxg6 {[%clk 0:02:44.2]} 11.
Qf3 {[%clk 0:02:35.6]} 11... Nd8 {[%clk 0:02:39.6]} 12. cxd4 {[%clk 0:02:30.8]}
12... Be7 {[%clk 0:02:38]} 13. Nc3 {[%clk 0:02:24.5]} 13... Rh5 {[%clk
0:02:25.6]} 14. Nh3 {[%clk 0:02:11]} 14... Qxd4 {[%clk 0:02:14.6]} 15. Be3
{[%clk 0:01:59.1]} 15... Qh4 {[%clk 0:02:11.8]} 16. Rad1 {[%clk 0:01:37.7]}
16... Nc6 {[%clk 0:01:51.5]} 17. Bf4 {[%clk 0:01:16.2]} 17... Rh8 {[%clk
0:01:10.8]} 18. Bg3 {[%clk 0:01:05.6]} 18... Qh5 {[%clk 0:01:10.1]} 19. Qd3
{[%clk 0:00:58]} 19... Qf5 {[%clk 0:00:51.8]} 20. Qd2 {[%clk 0:00:50.5]} 20...
O-O-O {[%clk 0:00:44.1]} 21. a3 {[%clk 0:00:47.3]} 21... Kb8 {[%clk 0:00:43.9]}
22. b4 {[%clk 0:00:47.2]} 22... Rc8 {[%clk 0:00:43.5]} 23. Na4 {[%clk
0:00:41.6]} 23... Nxb4 {[%clk 0:00:35.3]} 24. Nb6 {[%clk 0:00:31.2]} 24... axb6
{[%clk 0:00:29.4]} 25. axb4 {[%clk 0:00:30.9]} 25... Rc2 {[%clk 0:00:29.4]} 26.
Qe3 {[%clk 0:00:27.5]} 26... Bd8 {[%clk 0:00:19.1]} 27. Ra1 {[%clk 0:00:26.4]}
27... Bb5 {[%clk 0:00:19.3]} 28. Qa3 {[%clk 0:00:23.9]} 28... Ba6 {[%clk
0:00:16.4]} 29. b5 {[%clk 0:00:19.5]} 29... Bxb5 {[%clk 0:00:16.8]} 30. Qa8+
{[%clk 0:00:18.2]} 30... Kc7 {[%clk 0:00:16.9]} 31. Rec1 {[%clk 0:00:16.7]}
31... Re8 {[%clk 0:00:15.8]} 32. Qa3 {[%clk 0:00:13.4]} 32... Be7 {[%clk
0:00:13.4]} 33. Qb3 {[%clk 0:00:10.8]} 33... Rxc1+ {[%clk 0:00:12]} 34. Rxc1+
{[%clk 0:00:10.6]} 34... Bc6 {[%clk 0:00:12.6]} 35. Rb1 {[%clk 0:00:08.7]} 35...
Bc5 {[%clk 0:00:12]} 36. Nf4 {[%clk 0:00:07.4]} 36... g5 {[%clk 0:00:11.6]} 37.
Nd3 {[%clk 0:00:07.5]} 37... Bd4 {[%clk 0:00:09.1]} 38. Kh1 {[%clk 0:00:06.4]}
38... Qe4 {[%clk 0:00:08.3]} 39. f3 {[%clk 0:00:06.3]} 39... Qe2 {[%clk
0:00:08.1]} 40. Rc1 {[%clk 0:00:02.8]} 40... Ra8 {[%clk 0:00:07.1]} 41. Bf2
{[%clk 0:00:02.3]} 41... Bxf2 {[%clk 0:00:06.2]} 42. Nxf2 {[%clk 0:00:02.5]}
42... Qxf2 {[%clk 0:00:06.4]} 0-1

[Event "Late-Titled-Tuesday-Blitz-September-12-2023"]
[Site "Chess.com"]
[Date "2023.09.12"]
[Round "9"]
[White "infinitegiantkiller"]
[Black "karinachess1"]
[Result "0-1"]
[WhiteElo "2454"]
[BlackElo "2611"]
[TimeControl "180+1"]
[EndTime "15:39:46 PDT"]
[Termination "karinachess1 won on time"]

1. Nf3 {[%clk 0:03:00.9]} 1... Nf6 {[%clk 0:02:59.7]} 2. g3 {[%clk 0:03:01.8]}
2... g6 {[%clk 0:02:59.9]} 3. Bg2 {[%clk 0:03:02.7]} 3... Bg7 {[%clk 0:03:00.5]}
4. O-O {[%clk 0:03:03.6]} 4... O-O {[%clk 0:03:01.1]} 5. b3 {[%clk 0:03:04.1]}
5... d6 {[%clk 0:03:01.2]} 6. Bb2 {[%clk 0:03:04.4]} 6... c5 {[%clk 0:02:55.4]}
7. d4 {[%clk 0:03:04.7]} 7... cxd4 {[%clk 0:02:55.3]} 8. Nxd4 {[%clk 0:03:04.4]}
8... d5 {[%clk 0:02:55.8]} 9. Nd2 {[%clk 0:03:01.8]} 9... Nc6 {[%clk 0:02:49.8]}
10. Nxc6 {[%clk 0:03:01.5]} 10... bxc6 {[%clk 0:02:50.7]} 11. c4 {[%clk
0:03:02.1]} 11... Bf5 {[%clk 0:02:47.9]} 12. Rc1 {[%clk 0:03:01.6]} 12... Qa5
{[%clk 0:02:40.8]} 13. a3 {[%clk 0:03:00.4]} 13... Rad8 {[%clk 0:02:40.6]} 14.
b4 {[%clk 0:03:00.1]} 14... Qa6 {[%clk 0:02:40.1]} 15. c5 {[%clk 0:02:58.3]}
15... Rfe8 {[%clk 0:02:32.6]} 16. e3 {[%clk 0:02:58.1]} 16... e5 {[%clk
0:02:29.5]} 17. Qb3 {[%clk 0:02:56.8]} 17... Bd3 {[%clk 0:02:21.9]} 18. Rfd1
{[%clk 0:02:55.7]} 18... Bb5 {[%clk 0:02:22.3]} 19. Bf1 {[%clk 0:02:52.5]} 19...
Bxf1 {[%clk 0:02:15.2]} 20. Nxf1 {[%clk 0:02:51.1]} 20... Ne4 {[%clk 0:02:13.1]}
21. a4 {[%clk 0:02:40.3]} 21... Qe2 {[%clk 0:02:09.3]} 22. Qc2 {[%clk
0:02:40.1]} 22... Qf3 {[%clk 0:02:09.6]} 23. Rd3 {[%clk 0:02:18.7]} 23... Rb8
{[%clk 0:02:02.6]} 24. Ba3 {[%clk 0:02:08.8]} 24... Rec8 {[%clk 0:01:56.7]} 25.
h4 {[%clk 0:02:02.5]} 25... g5 {[%clk 0:01:40.2]} 26. Nh2 {[%clk 0:01:49.9]}
26... Qh5 {[%clk 0:01:34.5]} 27. hxg5 {[%clk 0:01:49.8]} 27... Nxg5 {[%clk
0:01:29.3]} 28. Qd1 {[%clk 0:01:48]} 28... Qg6 {[%clk 0:01:20.6]} 29. b5 {[%clk
0:01:13.9]} 29... e4 {[%clk 0:01:00.5]} 30. Rd2 {[%clk 0:01:10.6]} 30... Rd8
{[%clk 0:00:48.5]} 31. bxc6 {[%clk 0:01:09]} 31... Qxc6 {[%clk 0:00:49.4]} 32.
Qg4 {[%clk 0:01:02.7]} 32... h6 {[%clk 0:00:49.4]} 33. Rcd1 {[%clk 0:00:56.3]}
33... Rd7 {[%clk 0:00:39.6]} 34. Qf5 {[%clk 0:00:46.5]} 34... Qe6 {[%clk
0:00:39.8]} 35. g4 {[%clk 0:00:15.4]} 35... Rbd8 {[%clk 0:00:39.4]} 36. c6
{[%clk 0:00:14.5]} 36... Qxc6 {[%clk 0:00:34.8]} 37. Bb2 {[%clk 0:00:10.9]}
37... Qe6 {[%clk 0:00:26.8]} 38. Bxg7 {[%clk 0:00:10.1]} 38... Kxg7 {[%clk
0:00:27.7]} 39. Kg2 {[%clk 0:00:06.3]} 39... Qxf5 {[%clk 0:00:19.5]} 40. gxf5
{[%clk 0:00:07.2]} 40... h5 {[%clk 0:00:19.9]} 41. Nf1 {[%clk 0:00:07.4]} 41...
Kf6 {[%clk 0:00:19]} 42. Ng3 {[%clk 0:00:07.4]} 42... h4 {[%clk 0:00:19.5]} 43.
Ne2 {[%clk 0:00:07.9]} 43... Nf3 {[%clk 0:00:18.3]} 44. Rc2 {[%clk 0:00:07]}
44... Rg8+ {[%clk 0:00:17.9]} 45. Kh3 {[%clk 0:00:07.3]} 45... Kxf5 {[%clk
0:00:16.1]} 46. Nd4+ {[%clk 0:00:06.6]} 46... Nxd4 {[%clk 0:00:15.3]} 47. Rxd4
{[%clk 0:00:07.5]} 47... Rg1 {[%clk 0:00:13.2]} 48. Kxh4 {[%clk 0:00:06.5]}
48... Rd8 {[%clk 0:00:12.1]} 0-1